bitfinex/quotes_ETHUSD_20251028
["timestamp","ask_amount","ask_price","bid_price","bid_amount"]
[1761681979557,0.124,4027.1,4026.8,2.48332243]
[1761681979937,0.124,4027.1,4026.6,2.48342886]
[1761681980138,2.48314379,4027.2,4026.0,4.86584458]
[1761681980364,0.124,4026.6,4026.4,2.48355769]
[1761681980563,0.124,4026.6,4026.5,2.4835465]
[1761681980729,0.124,4026.6,4026.4,2.48360225]
[1761681980934,0.124,4026.6,4026.5,2.4835465]
[1761681981249,2.4795,4027.7,4026.0,2.506]
[1761681981250,4.86285705,4027.7,4026.8,2.48330842]
[1761681981560,0.124,4026.8,4026.2,0.124]
[1761681981728,0.124,4026.8,4026.7,2.48342315]
[1761681981928,0.0995,4028.8,4026.7,2.48342315]
[1761681982128,0.124,4027.4,4026.7,0.5693]
[1761681982334,0.124,4027.4,4026.7,0.124]
[1761681982531,0.124,4027.1,4026.7,2.48338731]
[1761681982732,0.124,4027.1,4026.7,2.48340061]
[1761681982971,0.124,4027.1,4026.5,2.48354336]
[1761681982972,0.124,4027.1,4026.5,2.4835465]
[1761681983167,0.1249,4027.3,4026.1,0.4453]
[1761681983467,0.0998,4028.0,4027.0,2.48318557]
[1761681983765,2.375,4027.8,4027.0,2.48318075]
[1761681983987,3.9302,4027.8,4025.9,0.4453]
[1761681984171,3.9302,4027.8,4024.4,0.002]
[1761681984172,0.1257,4026.0,4024.4,0.002]
[1761681984468,2.48400394,4025.8,4024.5,2.93002292]
[1761681984670,0.1257,4026.0,4024.5,0.4453]
[1761681984671,2.48391663,4025.9,4024.5,0.4453]
[1761681985167,2.60955537,4026.0,4024.5,0.4453]
[1761681985355,0.1257,4026.0,4025.1,2.48441001]
[1761681985562,0.1257,4026.0,4024.5,0.4453]
[1761681985735,0.1257,4026.0,4024.6,2.4846669]
[1761681985736,2.48420778,4025.5,4024.6,2.4846669]
[1761681986071,0.225,4026.0,4024.4,0.002]
[1761681986072,0.61702175,4025.9,4024.4,0.002]
[1761681986235,2.48455309,4024.9,4024.4,0.002]
[1761681986431,1.5552,4025.6,4024.4,0.002]
[1761681986432,2.48476453,4024.6,4024.4,0.002]
[1761681986655,2.48478071,4024.5,4024.4,0.002]
[1761681987481,4.13898071,4024.5,4024.4,0.002]
[1761681987783,4.13898071,4024.5,4024.4,0.001]
[1761681987784,5.06321477,4024.5,4024.4,0.001]
[1761681987986,2.48508946,4024.0,4023.9,0.002]
[1761681988270,2.48508946,4024.0,4019.8,0.4453]
[1761681988271,2.48570718,4023.0,4019.8,0.4453]
[1761681988443,1.5552,4022.9,4020.0,0.2244]
[1761681988635,0.0974,4021.7,4020.2,0.4453]
[1761681988832,0.0974,4021.7,4020.0,0.2244]
[1761681988833,2.388,4021.7,4020.7,0.4453]
[1761681989078,0.64813934,4022.8,4021.6,0.6727]
[1761681989287,0.51939469,4022.8,4021.7,2.48651067]
[1761681989450,0.1105,4023.5,4021.8,2.80235924]
[1761681989451,0.51872084,4023.2,4021.8,2.80235924]
[1761681989638,1.16686018,4023.3,4021.8,0.31592107]
[1761681989936,0.64813934,4022.9,4021.6,0.2274]
[1761681990329,2.397,4022.8,4021.6,0.003]
[1761681990610,0.64813934,4022.6,4021.6,0.003]
[1761681990817,2.397,4022.6,4021.6,0.2274]
[1761681991282,2.91572084,4022.6,4021.6,0.2274]
[1761681991485,0.51872084,4022.5,4021.6,0.003]
[1761681991684,0.64813934,4022.4,4021.6,0.003]
[1761681992097,2.17292084,4022.5,4021.6,0.003]
[1761681992098,0.64813934,4022.2,4021.6,0.003]
[1761681992300,2.399,4022.1,4021.6,0.003]
[1761681992616,4.04171067,4021.7,4021.6,0.003]
[1761681992772,3.36392084,4021.7,4021.6,0.002]
[1761681992975,5.2692,4021.7,4021.6,0.002]
[1761681993176,5.78792084,4021.7,4021.6,0.002]
[1761681993407,8.37243151,4021.7,4021.6,0.002]
[1761681993776,7.08243151,4021.7,4021.6,0.002]
[1761681994213,7.94404115,4021.7,4021.6,0.002]
[1761681994413,7.08243151,4021.7,4021.6,0.002]
[1761681994804,8.37485666,4021.7,4021.6,0.002]
[1761681995002,7.08243151,4021.7,4021.6,0.002]
[1761681995249,4.65843151,4021.7,4021.6,0.002]
[1761681995426,7.08743151,4021.7,4021.6,0.002]
[1761681995738,7.49293551,4021.7,4021.6,0.002]
[1761681996067,4.65843151,4021.7,4021.6,0.002]
[1761681996216,3.03155333,4021.7,4021.6,0.002]
[1761681996422,6.56971067,4021.7,4021.6,0.002]
[1761681996604,7.08843151,4021.7,4021.6,0.002]
[1761681997137,7.08843151,4021.7,4019.5,2.48783357]
[1761681997138,1.9847,4021.6,4019.5,2.48783357]
[1761681997465,1.9847,4021.6,4018.7,0.405504]
[1761681997466,2.48713187,4020.7,4019.4,2.48787805]
[1761681997604,2.437,4020.6,4018.7,2.48836688]
[1761681997828,1.5552,4020.5,4018.1,0.1087]
[1761681998140,1.5552,4020.2,4018.1,0.1087]
[1761681998341,0.4295,4020.4,4018.1,0.1087]
[1761681998542,1.5552,4020.3,4018.1,0.1087]
[1761681998761,0.51551118,4020.3,4018.1,0.1087]
[1761681998966,0.51551118,4020.5,4018.2,0.4453]
[1761681999133,0.64437428,4021.8,4018.4,20.279945]
[1761681999334,1.15932169,4022.3,4018.7,1.5552]
[1761681999669,0.0975,4022.9,4019.9,0.405504]
[1761681999670,2.438,4022.2,4019.9,0.405504]
[1761681999855,2.438,4022.1,4018.5,2.48848721]
[1761682000057,2.438,4022.1,4018.8,2.48830496]
[1761682000058,0.001,4020.5,4018.8,2.48830496]
[1761682000262,0.001,4020.5,4018.9,0.405504]
[1761682000459,2.448,4020.4,4018.7,2.48831032]
[1761682000785,0.98022741,4020.4,4018.5,2.48849073]
[1761682001068,4.4757,4020.3,4018.4,0.4284]
[1761682001368,4.4757,4020.3,4019.3,2.48797779]
[1761682001555,4.4757,4020.3,4018.4,0.4284]
[1761682001556,4.0102,4020.3,4018.4,0.4284]
[1761682001742,4.0102,4020.3,4018.4,0.30257849]
[1761682001743,2.48766681,4019.9,4018.4,0.30257849]
[1761682001928,2.48766681,4019.9,4017.1,0.4284]
[1761682001929,2.48768595,4019.8,4017.1,0.4284]
[1761682002134,0.2193,4018.1,4017.0,0.2244]
[1761682002330,2.238,4018.5,4017.0,0.2244]
[1761682002533,2.238,4018.4,4017.0,0.2244]
[1761682002742,0.2193,4019.8,4018.0,0.4304]
[1761682002933,0.4655,4019.7,4018.0,0.002]
[1761682003146,0.4655,4019.7,4018.8,2.48827695]
[1761682003439,0.4655,4019.7,4018.6,2.48842689]
[1761682003639,0.4655,4019.7,4018.0,0.25109396]
[1761682003835,0.124,4018.5,4018.0,0.002]
[1761682004081,0.124,4018.5,4018.4,2.48855265]
[1761682004371,0.64437428,4021.1,4018.5,0.405504]
[1761682004533,0.64437428,4021.1,4018.7,0.405504]
[1761682004534,2.457,4021.1,4018.7,0.405504]
[1761682004730,2.457,4021.1,4020.0,2.48751129]
[1761682005089,2.457,4021.1,4018.9,0.405504]
[1761682005240,2.457,4021.1,4020.2,2.48739032]
[1761682005462,2.457,4021.1,4019.2,0.4284]
[1761682005691,2.457,4021.1,4020.3,2.48735118]
[1761682005903,2.457,4021.1,4019.5,2.48787162]
[1761682005904,0.2193,4021.7,4020.4,2.48731469]
[1761682006103,2.459,4021.2,4020.4,2.48731469]
[1761682007197,0.4665,4020.5,4018.8,0.4284]
[1761682007399,2.48747785,4020.2,4018.6,0.1087]
[1761682007600,2.48756771,4020.0,4018.7,2.48831321]
[1761682007808,4.0102,4020.1,4019.0,2.4881772]
[1761682007972,0.4655,4020.0,4018.2,0.4284]
[1761682008180,2.48794244,4019.4,4017.9,2.48885485]
[1761682008374,1.5552,4019.8,4017.5,2.8824]
[1761682008703,2.70693708,4019.9,4017.1,2.4892974]
[1761682008704,2.455,4019.3,4017.1,2.4892974]
[1761682008906,0.2193,4019.9,4017.7,2.48896378]
[1761682009156,0.64437428,4020.6,4018.2,2.48867652]
[1761682009157,1.857,4020.6,4018.2,2.48867652]
[1761682009428,1.857,4020.6,4019.4,2.48793327]
[1761682009567,1.857,4020.6,4018.0,0.25109638]
[1761682009568,0.4655,4020.4,4018.0,0.25109638]
[1761682009762,1.5552,4020.3,4018.0,0.002]
[1761682010006,1.5552,4020.3,4018.2,2.48867652]
[1761682010304,0.51466741,4020.5,4018.2,0.405504]
[1761682010305,1.5552,4020.1,4018.2,0.405504]
[1761682010601,1.5552,4020.1,4018.3,2.48861307]
[1761682010799,2.9245,4020.2,4018.3,2.48861307]
[1761682010800,0.4655,4020.2,4018.3,0.4284]
[1761682011004,2.459,4020.0,4018.4,0.4284]
[1761682011426,2.459,4020.0,4019.2,2.48800239]
[1761682011700,4.0428591,4019.9,4018.5,2.4884723]
[1761682011872,0.4655,4019.8,4018.0,0.002]
[1761682012072,2.488117,4019.2,4018.0,0.002]
[1761682012385,4.9451281,4019.1,4018.0,0.002]
[1761682012584,2.53597932,4019.0,4018.0,0.002]
[1761682012927,1.5552,4018.9,4018.0,0.002]
[1761682013100,0.64437428,4019.5,4018.1,2.48873845]
[1761682013101,2.48805822,4019.2,4018.1,2.48873845]
[1761682013269,2.456,4018.9,4018.0,0.002]
[1761682013470,4.0112,4018.9,4018.0,2.49079175]
[1761682013775,0.98185315,4018.8,4018.0,0.002]
[1761682013975,2.53705315,4018.8,4018.0,0.002]
[1761682014501,2.48857635,4018.4,4018.0,0.002]
[1761682014719,4.0112,4018.9,4016.6,3.13533058]
[1761682014720,1.7745,4018.1,4016.6,3.13533058]
[1761682014903,2.48916784,4017.5,4016.6,3.13533058]
[1761682015067,0.64437428,4017.7,4016.6,3.13533058]
[1761682015272,0.64437428,4017.6,4016.6,3.13533058]
[1761682015515,1.16072743,4017.5,4016.6,3.13533058]
[1761682015716,2.48923406,4017.3,4016.6,3.13533058]
[1761682015866,2.48941996,4017.0,4016.6,3.13533058]
[1761682016069,4.56097311,4017.0,4016.6,3.13533058]
[1761682016381,2.48960589,4016.7,4016.6,3.13533058]
[1761682016583,7.89004819,4016.7,4016.6,3.13533058]
[1761682016788,7.89004819,4016.7,4016.6,1.71452956]
[1761682016789,7.48795904,4016.7,4016.6,1.71452956]
[1761682016987,2.48972986,4016.5,4016.4,0.003]
[1761682017189,0.51635315,4016.5,4016.4,0.003]
[1761682017392,0.51635315,4016.8,4016.4,0.003]
[1761682017580,2.469,4017.4,4016.4,0.003]
[1761682017999,0.4608,4017.3,4016.4,0.003]
[1761682018240,0.4608,4017.3,4016.6,0.002]
[1761682018241,2.48936664,4017.1,4016.6,0.002]
[1761682018535,0.51775299,4017.1,4016.6,0.002]
[1761682018682,0.51773591,4017.8,4016.7,0.4284]
[1761682018878,2.472,4017.9,4016.6,0.002]
[1761682019083,2.48917562,4017.4,4016.6,0.002]
[1761682019384,0.51773591,4017.6,4016.8,2.48954338]
[1761682019734,0.86272513,4018.0,4016.6,0.002]
[1761682019735,0.64712111,4018.6,4016.9,0.4284]
[1761682019880,0.64712111,4018.6,4016.6,0.002]
[1761682019881,0.64712111,4018.5,4016.6,0.002]
[1761682020083,0.64712111,4018.5,4013.0,2.4918971]
[1761682020084,0.64712111,4018.0,4013.0,2.4918971]
[1761682020276,0.64712111,4018.0,4012.9,0.2449]
[1761682020277,1.5552,4017.2,4013.1,3.0279079]
[1761682020483,4.0322,4017.1,4013.4,1.5552]
[1761682020715,4.0322,4017.1,4013.1,3.0279079]
[1761682020716,0.64712111,4016.8,4013.3,2.49171504]
[1761682020893,2.49040095,4015.5,4013.4,0.32905229]
[1761682021093,0.51784913,4015.7,4013.3,2.49171504]
[1761682021308,0.51784913,4015.7,4013.2,0.2449]
[1761682021309,0.64712111,4016.5,4013.2,0.2449]
[1761682021508,2.72008938,4016.6,4013.3,1.5552]
[1761682021707,0.51776827,4016.5,4013.2,0.2449]
[1761682021911,2.07296827,4016.7,4013.4,1.5552]
[1761682022112,0.86272513,4017.2,4013.3,2.737504]
[1761682022113,1.11262111,4017.4,4014.1,0.405504]
[1761682022420,1.11262111,4017.4,4013.7,2.49141855]
[1761682022421,0.2193,4017.5,4015.1,2.49059799]
[1761682022623,0.64712111,4017.8,4016.1,2.48997783]
[1761682022624,0.51781432,4017.8,4016.1,2.48997783]
[1761682022926,0.001,4018.9,4018.2,2.48867113]
[1761682023092,0.001,4018.9,4017.7,0.1224]
[1761682023421,0.001,4018.9,4018.8,2.48830496]
[1761682023635,0.001,4018.9,4017.8,0.2449]
[1761682023833,0.001,4018.9,4017.0,0.405504]
[1761682023834,0.4655,4018.8,4017.0,0.405504]
[1761682023984,0.64712111,4018.7,4017.0,2.48941996]
[1761682024184,0.64812111,4018.9,4017.0,0.261182]
[1761682024396,0.4655,4018.8,4017.0,0.261182]
[1761682024610,0.001,4018.9,4016.9,0.1224]
[1761682024786,0.001,4018.9,4016.4,1.5552]
[1761682024787,0.124,4017.7,4017.2,0.124]
[1761682024982,0.001,4018.9,4016.9,0.2449]
[1761682025189,0.001,4018.9,4016.6,1.5552]
[1761682025190,0.001,4018.9,4018.8,2.48830496]
[1761682026143,0.001,4018.9,4018.5,0.1224]
[1761682026284,0.001,4018.9,4017.7,2.6134]
[1761682026615,0.001,4018.9,4018.8,2.48830496]
[1761682026826,0.001,4018.9,4018.8,2.513188]
[1761682027141,0.001,4018.9,4018.1,2.48868118]
[1761682027142,0.4665,4018.9,4018.1,2.48868118]
[1761682027343,0.4665,4018.9,4017.4,2.4891721]
[1761682027641,0.4665,4018.9,4017.3,2.6134]
[1761682027642,0.001,4018.9,4018.8,2.48830496]
[1761682028052,0.001,4018.9,4018.8,3.13870896]
[1761682028200,0.001,4018.9,4018.8,5.22420496]
[1761682028398,0.001,4018.9,4018.1,0.2449]
[1761682028597,0.001,4018.9,4018.8,2.48830496]
[1761682031143,0.001,4020.5,4020.4,3.88389024]
[1761682031652,0.001,4020.5,4020.4,2.48731469]
[1761682031801,0.001,4020.5,4020.4,4.98331469]
[1761682032197,0.001,4020.5,4020.4,5.63271869]
[1761682032631,0.001,4020.5,4020.4,3.13671869]
[1761682032806,0.001,4020.5,4020.4,5.63071869]
[1761682033128,0.001,4020.5,4020.4,6.44253064]
[1761682033921,0.001,4020.5,4020.4,7.99773064]
[1761682034131,0.001,4020.5,4020.4,5.50373064]
[1761682034449,0.001,4020.5,4020.4,7.99473064]
[1761682034635,0.001,4020.5,4020.4,5.50373064]
[1761682034999,0.001,4020.5,4020.4,2.73121469]
[1761682035200,0.001,4020.5,4020.4,4.97831469]
[1761682035644,0.001,4020.5,4020.4,5.22221469]
[1761682035810,0.001,4020.5,4020.4,5.62671869]
[1761682036156,1.70758593,4024.2,4021.6,0.405504]
[1761682036157,0.2354,4023.5,4021.6,0.405504]
[1761682036304,0.2354,4023.5,4022.0,0.405504]
[1761682036506,0.6832,4023.5,4022.1,2.7801891]
[1761682036811,0.6832,4023.5,4022.7,2.48584015]
[1761682037016,0.6832,4023.5,4022.1,2.7801891]
[1761682037017,0.6832,4023.5,4022.2,0.405504]
[1761682037333,0.2354,4023.5,4022.7,2.48583532]
[1761682037636,0.4478,4023.4,4021.6,0.405504]
[1761682037935,0.2354,4023.5,4022.8,2.48582625]
[1761682038433,0.4478,4024.0,4022.6,0.405504]
[1761682038730,0.4478,4023.9,4022.6,0.405504]
[1761682038919,0.4478,4023.9,4023.2,2.48552853]
[1761682039502,2.93296236,4023.9,4022.9,2.48575738]
[1761682039703,2.003,4023.9,4022.6,0.405504]
[1761682039899,0.4478,4023.9,4023.2,2.48556175]
[1761682040103,0.4478,4023.9,4023.3,2.48547726]
[1761682040822,1.5552,4023.8,4022.6,0.405504]
[1761682041022,0.4478,4023.9,4022.4,0.405504]
[1761682041228,0.4478,4023.8,4022.4,0.405504]
[1761682041425,4.04052311,4023.7,4022.5,2.48601615]
[1761682041729,4.04050265,4023.7,4022.4,0.405504]
[1761682041925,2.48510914,4024.0,4021.0,1.5552]
[1761682041926,0.4478,4023.6,4021.0,1.5552]
[1761682042239,4.04066005,4023.4,4020.2,2.48742803]
[1761682042402,2.48558361,4023.2,4020.4,4.22130939]
[1761682042602,2.48642616,4021.9,4020.5,2.481]
[1761682042813,2.48546005,4023.4,4020.5,2.481]
[1761682042814,2.48564539,4023.1,4020.5,2.481]
[1761682043058,0.2354,4021.8,4020.5,2.481]
[1761682043210,0.6832,4021.8,4019.7,0.1214]
[1761682043416,2.4867006,4021.4,4020.4,2.48725804]
[1761682043644,2.48657737,4021.6,4020.4,2.48725804]
[1761682043830,2.2384,4021.8,4020.8,2.48705901]
[1761682044148,1.5552,4022.3,4020.5,2.48725282]
[1761682044447,0.2354,4022.3,4020.6,0.53800265]
[1761682044745,0.2354,4022.3,4021.0,2.48694179]
[1761682044746,1.5552,4022.1,4021.0,2.48694179]
[1761682044931,1.5552,4021.9,4020.5,2.48720179]
[1761682045130,0.124,4020.9,4020.2,0.124]
[1761682045332,0.124,4020.6,4019.9,0.124]
[1761682045647,2.48600316,4022.6,4020.1,2.48750031]
[1761682045847,0.124,4022.1,4022.0,2.48632521]
[1761682047250,0.124,4022.1,4021.5,2.48659175]
[1761682047251,0.5718,4022.1,4021.5,2.48662108]
[1761682047459,0.124,4021.8,4021.5,2.48658392]
[1761682047755,0.124,4021.8,4021.2,2.48681824]
[1761682047914,0.124,4021.8,4021.1,0.124]
[1761682048115,4.2764302,4022.9,4018.1,0.2429]
[1761682048116,1.5552,4021.4,4018.1,0.2429]
[1761682048353,1.5552,4021.6,4015.9,12.24469964]
[1761682048354,1.5552,4021.6,4018.5,2.079]
[1761682048563,2.057,4021.4,4018.9,4.9764861]
[1761682048846,1.5552,4021.3,4020.5,2.48723764]
[1761682049047,2.003,4021.3,4019.5,4.97084873]
[1761682049218,2.003,4021.2,4019.4,2.482]
[1761682049616,2.48689001,4021.1,4020.2,2.48738595]
[1761682049851,4.04209001,4021.1,4020.2,2.48738595]
[1761682050054,0.4478,4021.2,4020.4,2.48730852]
[1761682050255,0.4478,4021.2,4019.5,0.405504]
[1761682050568,2.48563458,4023.2,4019.7,2.89325184]
[1761682050569,1.5552,4021.6,4019.7,2.89325184]
[1761682050763,1.5552,4021.6,4020.8,2.48706323]
[1761682050931,1.5552,4021.6,4019.6,0.98360193]
[1761682050932,0.4478,4021.5,4020.9,0.02487005]
[1761682051133,0.4478,4021.5,4018.3,2.4885677]
[1761682051134,1.5552,4021.3,4018.3,2.4885677]
[1761682051466,2.48719979,4020.6,4019.6,2.48780028]
[1761682051871,0.4478,4020.7,4019.4,2.483]
[1761682052163,1.5552,4020.9,4019.4,2.483]
[1761682052164,1.5552,4021.1,4020.0,2.48754858]
[1761682052332,2.003,4021.1,4020.3,2.48737497]
[1761682052532,4.48989591,4021.1,4020.3,2.48737497]
[1761682052742,2.003,4021.1,4019.5,0.653804]
[1761682052946,2.003,4021.1,4019.6,0.405504]
[1761682053179,1.5552,4021.1,4019.8,0.405504]
[1761682053383,1.5552,4021.1,4020.8,2.4870488]
[1761682053676,0.4478,4021.7,4021.0,2.48689246]
[1761682053877,2.003,4021.7,4020.3,0.405504]
[1761682054086,2.93431728,4021.7,4020.2,2.478]
[1761682054320,0.96873356,4021.6,4020.8,2.4870372]
[1761682054432,0.4478,4021.6,4021.0,2.48692368]
[1761682054633,0.4478,4021.6,4020.8,2.48701923]
[1761682054829,1.5552,4022.1,4020.2,2.478]
[1761682055062,1.09492111,4022.2,4020.2,2.478]
[1761682055063,0.4478,4022.2,4020.3,0.91419402]
[1761682055365,2.48647932,4021.8,4020.3,0.91419402]
[1761682055553,4.0416562,4021.8,4020.2,2.48743843]
[1761682055754,5.01047486,4021.7,4020.3,0.405504]
[1761682055954,5.01047486,4021.7,4020.1,0.1214]
[1761682055955,0.52182461,4021.6,4020.1,2.481]
[1761682056134,2.003,4021.6,4020.6,2.48713563]
[1761682056333,2.52482461,4021.6,4020.6,2.48713563]
[1761682056533,0.96962461,4021.6,4020.7,2.48711419]
[1761682056730,2.48669676,4021.4,4020.7,2.48711419]
[1761682056956,2.48669676,4021.4,4020.4,2.48730373]
[1761682056957,0.52182461,4021.5,4020.6,2.48717445]
[1761682057154,2.48671287,4021.4,4020.7,2.48711989]
[1761682057359,3.00853748,4021.4,4020.7,2.48711989]
[1761682057558,0.4478,4021.6,4020.1,2.48]
[1761682057559,0.96962461,4021.3,4020.1,0.002]
[1761682057837,2.48688231,4021.1,4020.1,0.002]
[1761682058032,0.124,4020.4,4020.2,2.48743843]
[1761682058265,0.124,4020.4,4020.3,2.48737656]
[1761682058467,0.124,4020.4,4020.2,2.48742866]
[1761682058667,0.124,4020.4,4020.1,0.002]
[1761682058989,0.124,4020.4,4020.3,2.48737656]
[1761682059679,1.70758593,4022.5,4020.3,2.48737656]
[1761682059680,0.64712111,4022.4,4020.8,0.405504]
[1761682059883,0.99618392,4022.8,4020.7,0.405504]
[1761682060175,0.99618392,4022.8,4020.3,0.49768282]
[1761682060176,0.4735,4022.8,4020.9,2.89250939]
[1761682060382,2.95939406,4022.7,4021.2,0.405504]
[1761682060714,0.52268392,4022.6,4021.4,0.405504]
[1761682060842,0.52268392,4022.7,4022.6,2.48595435]
[1761682061051,0.4735,4023.4,4022.8,2.48578483]
[1761682061363,0.4735,4023.4,4022.3,0.1214]
[1761682061741,0.4735,4023.4,4022.8,2.48578165]
[1761682061938,0.4735,4023.4,4022.3,0.1214]
[1761682062151,0.4735,4023.4,4022.6,2.4859523]
[1761682062350,2.48552268,4023.3,4022.3,2.472]
[1761682062542,4.04073591,4023.3,4022.3,2.48609507]
[1761682062742,0.99618392,4023.2,4022.3,2.48609507]
[1761682062942,0.4735,4023.2,4022.5,2.48599051]
[1761682063143,1.5552,4023.4,4022.7,2.48584208]
[1761682063376,0.64712111,4023.5,4022.5,2.48595845]
[1761682063579,0.4735,4023.4,4022.6,2.48590669]
[1761682063782,0.4735,4023.4,4022.6,2.48590759]
[1761682064276,1.5552,4023.3,4022.6,2.48592341]
[1761682064479,3.00820764,4023.3,4022.5,2.48600286]
[1761682064668,0.52268392,4023.3,4022.6,2.48593505]
[1761682064868,0.4735,4023.4,4021.7,2.48649621]
[1761682064869,2.48583732,4022.8,4021.7,2.48649621]
[1761682065069,1.12062111,4023.2,4021.9,2.48638703]
[1761682065245,2.48569567,4023.1,4021.8,2.465]
[1761682065577,0.4735,4023.1,4022.3,2.48609125]
[1761682065886,1.5552,4023.3,4022.5,2.48596293]
[1761682066083,0.64712111,4023.4,4022.0,2.464]
[1761682066084,0.4735,4023.2,4022.0,2.464]
[1761682066283,0.4735,4023.2,4022.1,2.48626158]
[1761682066448,2.48581193,4022.9,4022.1,2.48626158]
[1761682066654,2.48581193,4022.9,4021.9,2.48637512]
[1761682066655,2.48577942,4022.9,4022.2,2.4861938]
[1761682066850,0.4735,4022.8,4021.7,2.463]
[1761682067050,0.52268392,4023.2,4021.9,0.405504]
[1761682067264,4.68788679,4023.3,4022.5,2.48599374]
[1761682067469,0.52268392,4023.2,4021.8,2.48639717]
[1761682067672,0.64712111,4023.3,4021.9,0.405504]
[1761682067871,0.64712111,4023.4,4022.8,2.48577286]
[1761682068071,0.52268392,4023.5,4021.8,2.72934885]
[1761682068072,0.64712111,4023.5,4022.9,2.4857539]
[1761682068388,0.64712111,4023.5,4022.8,2.48582615]
[1761682068389,1.5552,4023.4,4022.8,2.48582615]
[1761682068589,0.52268392,4023.4,4022.3,4.94512156]
[1761682068793,0.52268392,4023.4,4022.8,2.48577462]
[1761682069165,0.52268392,4023.4,4022.5,2.48601615]
[1761682069369,3.00814839,4023.4,4022.6,2.48593488]
[1761682069571,0.124,4023.1,4022.7,2.48588352]
[1761682069774,0.52268392,4023.3,4022.5,0.405504]
[1761682070085,2.48588478,4022.8,4022.0,2.48631411]
[1761682070264,0.124,4022.5,4022.3,2.48613344]
[1761682070466,0.124,4022.5,4021.8,0.124]
[1761682070787,0.124,4022.5,4022.0,2.48632521]
[1761682071195,0.124,4022.5,4022.1,2.48626256]
[1761682071515,0.52268392,4023.1,4022.4,0.1214]
[1761682071813,1.12062111,4023.3,4021.9,0.526904]
[1761682071962,0.4735,4023.3,4022.9,2.48576246]
[1761682072158,2.95900978,4023.4,4022.0,0.405504]
[1761682072393,3.481663,4023.4,4022.7,2.48584739]
[1761682072595,0.99618392,4023.3,4022.6,2.48590341]
[1761682072901,0.4735,4023.3,4022.2,0.405504]
[1761682073200,0.4735,4023.3,4022.1,2.45]
[1761682073201,0.99618392,4023.3,4022.8,2.485824]
[1761682073378,0.4735,4023.3,4022.7,2.48587303]
[1761682073578,0.99618392,4023.3,4022.9,2.48572198]
[1761682073877,1.4735,4023.3,4022.9,2.48574955]
[1761682074074,1.4735,4023.3,4021.9,0.1214]
[1761682074075,2.48572479,4023.0,4021.9,0.1214]
[1761682074286,0.7017,4022.9,4021.8,2.444]
[1761682074488,0.7017,4022.9,4022.3,2.48611649]
[1761682074764,0.7017,4022.9,4022.2,2.48619678]
[1761682074986,0.7017,4022.9,4022.3,2.48612959]
[1761682075172,0.7017,4022.9,4022.4,2.48603412]
[1761682075481,0.7017,4022.9,4021.6,2.444]
[1761682075807,0.4735,4022.8,4022.0,2.48627763]
[1761682075968,2.48606383,4022.5,4021.8,2.48638826]
[1761682076706,2.95951615,4022.5,4021.8,2.48638826]
[1761682076910,2.48601615,4022.5,4021.8,2.48638826]
[1761682077071,2.95951615,4022.5,4021.8,2.48638826]
[1761682077404,2.95951615,4022.5,4021.8,2.48643814]
[1761682077992,2.48611799,4022.4,4021.7,2.48648416]
[1761682078190,2.95953794,4022.5,4021.8,2.48643675]
[1761682078489,0.4735,4022.5,4021.9,2.48637556]
[1761682078804,0.52265603,4022.7,4022.0,2.48630348]
[1761682079010,2.4859415,4022.7,4022.0,2.4862824]
[1761682079173,0.52265603,4022.7,4022.2,2.48617672]
[1761682079373,2.48599603,4022.6,4021.9,2.48636922]
[1761682079881,3.00865206,4022.6,4021.9,2.48636922]
[1761682080202,0.52265603,4022.6,4021.5,2.437]
[1761682080407,0.52265603,4022.8,4021.7,2.48646216]
[1761682080706,0.52265603,4022.8,4021.8,2.4864109]
[1761682080707,0.4735,4022.8,4021.8,2.4864109]
[1761682080910,0.4735,4022.8,4020.1,0.002]
[1761682080911,4.04109255,4022.7,4020.1,0.002]
[1761682081080,0.64712111,4022.5,4021.2,2.48680686]
[1761682081282,2.48643276,4021.9,4021.2,2.48680686]
[1761682081465,0.124,4021.4,4021.2,2.48680686]
[1761682081669,0.4735,4022.4,4021.3,2.48671251]
[1761682081877,0.124,4021.9,4021.8,2.48639046]
[1761682082077,0.4735,4022.8,4021.4,0.124]
[1761682082078,0.124,4022.1,4021.4,0.124]
[1761682082302,0.124,4022.1,4021.5,2.429]
[1761682082503,0.124,4022.1,4021.7,2.48650716]
[1761682082670,2.48661504,4021.6,4020.2,2.48741826]
[1761682082872,2.9025,4022.1,4020.0,0.1214]
[1761682082873,0.52316471,4022.0,4020.5,2.428]
[1761682083094,2.48664582,4021.5,4020.8,2.48701095]
[1761682083567,0.4735,4021.5,4020.9,2.48699712]
[1761682084217,0.2282,4021.0,4020.1,2.48946337]
[1761682084453,0.2282,4021.0,4020.1,0.002]
[1761682084603,2.0287,4021.5,4020.1,0.002]
[1761682084604,0.2282,4021.3,4020.1,0.002]
[1761682084802,0.64712111,4022.6,4020.9,0.405504]
[1761682085108,0.2282,4022.9,4021.1,2.89232455]
[1761682085340,0.2282,4022.9,4021.3,0.405504]
[1761682085718,0.52320867,4023.2,4023.0,2.48566316]
[1761682086033,1.0,4023.3,4021.4,0.2429]
[1761682086034,1.0,4023.3,4022.4,0.405504]
[1761682086231,1.0,4023.3,4022.9,2.48576304]
[1761682086426,1.0,4023.3,4023.0,2.48568769]
[1761682086748,1.0,4023.3,4022.9,2.48574995]
[1761682087115,1.0,4023.3,4023.1,2.48561101]
[1761682087332,1.0,4023.3,4022.6,0.405504]
[1761682087535,1.0,4023.3,4023.2,2.48558361]
[1761682088038,1.0,4023.3,4022.6,0.405504]
[1761682088267,1.0,4023.3,4022.7,2.48589255]
[1761682088431,1.0,4023.3,4023.1,2.48558759]
[1761682089165,1.0,4023.3,4023.1,2.48562808]
[1761682089532,1.0,4023.3,4022.8,2.48578411]
[1761682089744,1.0,4023.3,4022.5,0.1214]
[1761682089936,3.94803056,4023.3,4022.6,2.48589498]